[Event "*** Titled Tuesday Blitz"]
[Site "Chess.com"]
[Date "2020.05.26"]
[Round "7"]
[White "Joshukid"]
[Black "ChelsieMonica"]
[Result "1-0"]
[WhiteElo "2631"]
[BlackElo "2393"]
[TimeControl "180+1"]
[EndTime "11:21:33 PDT"]
[Termination "Joshukid won by resignation"]

1. d4 {[%clk 0:03:00.9]} 1... Nf6 {[%clk 0:02:59.7]} 2. Nc3 {[%clk 0:03:01.1]}
2... d5 {[%clk 0:02:58.9]} 3. Bf4 {[%clk 0:02:59.4]} 3... g6 {[%clk 0:02:58.7]}
4. e3 {[%clk 0:02:51.8]} 4... Bg7 {[%clk 0:02:56.9]} 5. h4 {[%clk 0:02:52.1]}
5... Nc6 {[%clk 0:02:54.1]} 6. h5 {[%clk 0:02:48.5]} 6... Nxh5 {[%clk
0:02:48.5]} 7. Rxh5 {[%clk 0:02:43.5]} 7... gxh5 {[%clk 0:02:48]} 8. Qxh5 {[%clk
0:02:44.1]} 8... Be6 {[%clk 0:02:18.7]} 9. Nb5 {[%clk 0:02:35.6]} 9... Rc8
{[%clk 0:02:11.8]} 10. Nf3 {[%clk 0:02:29.1]} 10... a6 {[%clk 0:02:09.9]} 11.
Ng5 {[%clk 0:02:29.4]} 11... Qd7 {[%clk 0:02:00.7]} 12. Nxc7+ {[%clk 0:02:19.8]}
12... Rxc7 {[%clk 0:01:57.9]} 13. Bxc7 {[%clk 0:02:20.7]} 13... Qxc7 {[%clk
0:01:36.1]} 14. Nxe6 {[%clk 0:02:20.5]} 14... Qa5+ {[%clk 0:01:36.1]} 15. c3
{[%clk 0:02:18.2]} 15... Bf6 {[%clk 0:01:36]} 16. Nf4 {[%clk 0:02:12.1]} 16...
e5 {[%clk 0:00:19.7]} 17. dxe5 {[%clk 0:02:06.2]} 17... Bxe5 {[%clk 0:00:20.6]}
18. Nd3 {[%clk 0:01:52.9]} 18... Bf6 {[%clk 0:00:19.8]} 19. Rd1 {[%clk
0:01:38.5]} 19... O-O {[%clk 0:00:19.1]} 20. a3 {[%clk 0:01:35.4]} 20... Re8
{[%clk 0:00:18]} 21. Nf4 {[%clk 0:01:35.8]} 21... d4 {[%clk 0:00:17.8]} 22. Qxa5
{[%clk 0:01:35.2]} 22... Nxa5 {[%clk 0:00:18.7]} 23. cxd4 {[%clk 0:01:34.7]}
23... Nb3 {[%clk 0:00:19.1]} 24. Bc4 {[%clk 0:01:33.7]} 24... Nxd4 {[%clk
0:00:19.2]} 25. Nh5 {[%clk 0:01:30.4]} 25... Bh8 {[%clk 0:00:18.6]} 26. Kf1
{[%clk 0:01:28.5]} 26... Nc6 {[%clk 0:00:18]} 27. Rd7 {[%clk 0:01:28.8]} 27...
Ne5 {[%clk 0:00:18]} 28. Rc7 {[%clk 0:01:03.1]} 28... Nxc4 {[%clk 0:00:18.2]}
29. Rxc4 {[%clk 0:01:04]} 29... Bxb2 {[%clk 0:00:18.4]} 30. a4 {[%clk
0:01:04.6]} 30... Rd8 {[%clk 0:00:17]} 31. Rb4 {[%clk 0:01:04]} 31... Bc3 {[%clk
0:00:15.8]} 32. Rxb7 {[%clk 0:01:02]} 32... Kf8 {[%clk 0:00:15]} 33. Nf4 {[%clk
0:00:57.4]} 33... Rd2 {[%clk 0:00:13.5]} 34. g4 {[%clk 0:00:55.6]} 34... Rd1+
{[%clk 0:00:13]} 35. Kg2 {[%clk 0:00:55.2]} 35... Ra1 {[%clk 0:00:13.9]} 36. Nd5
{[%clk 0:00:55.3]} 36... Be5 {[%clk 0:00:13.3]} 37. f4 {[%clk 0:00:49]} 37...
Ra2+ {[%clk 0:00:13]} 38. Kf3 {[%clk 0:00:49]} 38... Ba1 {[%clk 0:00:13.9]} 39.
Ne7 {[%clk 0:00:46.8]} 39... Rxa4 {[%clk 0:00:13.1]} 40. Nf5 {[%clk 0:00:47.5]}
40... Ke8 {[%clk 0:00:12.9]} 41. Nd6+ {[%clk 0:00:48.1]} 41... Kd8 {[%clk
0:00:12.6]} 42. Nxf7+ {[%clk 0:00:46.9]} 42... Kc8 {[%clk 0:00:12.3]} 43. Nd6+
{[%clk 0:00:47.5]} 43... Kd8 {[%clk 0:00:12.8]} 44. Rxh7 {[%clk 0:00:47.8]}
44... Rb4 {[%clk 0:00:12.2]} 45. Ra7 {[%clk 0:00:43.7]} 45... Rb6 {[%clk
0:00:11.2]} 46. Nc4 {[%clk 0:00:42.6]} 46... Rc6 {[%clk 0:00:11.6]} 47. Ne5
{[%clk 0:00:42.4]} 47... Rb6 {[%clk 0:00:12.1]} 48. g5 {[%clk 0:00:40.8]} 48...
Ke8 {[%clk 0:00:11.4]} 49. Nc4 {[%clk 0:00:37.2]} 49... Rc6 {[%clk 0:00:10.8]}
50. Nd2 {[%clk 0:00:33.9]} 50... a5 {[%clk 0:00:10.1]} 51. Rxa5 {[%clk 0:00:33]}
51... Bc3 {[%clk 0:00:10.4]} 52. Rd5 {[%clk 0:00:33.5]} 52... Bxd2 {[%clk
0:00:09.7]} 53. Rxd2 {[%clk 0:00:33.2]} 53... Kf7 {[%clk 0:00:10.6]} 54. f5
{[%clk 0:00:32.5]} 54... Rc4 {[%clk 0:00:10]} 55. e4 {[%clk 0:00:32.5]} 1-0

[Event "*** Titled Tuesday Blitz"]
[Site "Chess.com"]
[Date "2020.05.26"]
[Round "7"]
[White "Konovalova_Vera"]
[Black "kasparicy"]
[Result "0-1"]
[WhiteElo "2160"]
[BlackElo "2305"]
[TimeControl "180+1"]
[EndTime "11:21:34 PDT"]
[Termination "kasparicy won by resignation"]

1. d4 {[%clk 0:02:55.3]} 1... Nf6 {[%clk 0:02:57.2]} 2. Nf3 {[%clk 0:02:54.7]}
2... g6 {[%clk 0:02:57.6]} 3. e3 {[%clk 0:02:54.6]} 3... Bg7 {[%clk 0:02:58]} 4.
Bd3 {[%clk 0:02:54.5]} 4... d5 {[%clk 0:02:58.3]} 5. b3 {[%clk 0:02:54.4]} 5...
c5 {[%clk 0:02:56.7]} 6. Bb2 {[%clk 0:02:54]} 6... Ne4 {[%clk 0:02:56.9]} 7.
Nbd2 {[%clk 0:02:51.9]} 7... Bf5 {[%clk 0:02:56.9]} 8. O-O {[%clk 0:02:49.6]}
8... O-O {[%clk 0:02:56]} 9. Ne5 {[%clk 0:02:45.9]} 9... Nd7 {[%clk 0:02:54.5]}
10. f3 {[%clk 0:02:41.2]} 10... Nxd2 {[%clk 0:02:52.3]} 11. Qxd2 {[%clk
0:02:41.1]} 11... Bxd3 {[%clk 0:02:47.6]} 12. Qxd3 {[%clk 0:02:36.3]} 12... Rc8
{[%clk 0:02:46.9]} 13. Nxd7 {[%clk 0:02:17.9]} 13... Qxd7 {[%clk 0:02:47.8]} 14.
c3 {[%clk 0:02:14.5]} 14... e5 {[%clk 0:02:42.3]} 15. dxc5 {[%clk 0:02:04.7]}
15... Rxc5 {[%clk 0:02:41.2]} 16. c4 {[%clk 0:01:59]} 16... e4 {[%clk
0:02:30.6]} 17. Qe2 {[%clk 0:01:54.3]} 17... Bxb2 {[%clk 0:02:28.1]} 18. Qxb2
{[%clk 0:01:52.4]} 18... dxc4 {[%clk 0:02:26.6]} 19. fxe4 {[%clk 0:01:41]} 19...
c3 {[%clk 0:02:07.9]} 20. Qc2 {[%clk 0:01:39.4]} 20... Rd8 {[%clk 0:02:05.2]}
21. Rfd1 {[%clk 0:01:24.8]} 21... Qe7 {[%clk 0:02:04.6]} 22. Rxd8+ {[%clk
0:01:23.1]} 22... Qxd8 {[%clk 0:02:05.5]} 23. Rd1 {[%clk 0:01:21.3]} 23... Qe7
{[%clk 0:01:58.4]} 24. Rd3 {[%clk 0:01:16.5]} 24... Qe5 {[%clk 0:01:53.7]} 25.
Rd4 {[%clk 0:01:09.2]} 25... Kg7 {[%clk 0:01:52.9]} 26. h3 {[%clk 0:01:08.4]}
26... b5 {[%clk 0:01:43.4]} 27. b4 {[%clk 0:01:05.9]} 27... Rc6 {[%clk
0:01:42.5]} 28. Rd5 {[%clk 0:01:02.7]} 28... Qg3 {[%clk 0:01:40.3]} 29. Rd3
{[%clk 0:00:58.5]} 29... h5 {[%clk 0:01:31.4]} 30. Kf1 {[%clk 0:00:50.6]} 30...
Rf6+ {[%clk 0:01:07.2]} 31. Kg1 {[%clk 0:00:44.2]} 31... Qe1+ {[%clk 0:01:07.2]}
32. Kh2 {[%clk 0:00:44.2]} 32... Rc6 {[%clk 0:01:07.5]} 33. Rd5 {[%clk
0:00:37.9]} 33... Qxe3 {[%clk 0:01:04.8]} 34. Rxb5 {[%clk 0:00:35.3]} 34... h4
{[%clk 0:01:01.3]} 35. Rd5 {[%clk 0:00:33.1]} 35... Rf6 {[%clk 0:00:54.8]} 36.
Rd3 {[%clk 0:00:28.7]} 36... Qf4+ {[%clk 0:00:53.9]} 37. Kg1 {[%clk 0:00:27.6]}
37... Qf1+ {[%clk 0:00:49.3]} 38. Kh2 {[%clk 0:00:27.8]} 38... Rf2 {[%clk
0:00:47.2]} 39. Qxc3+ {[%clk 0:00:27.5]} 39... Kh7 {[%clk 0:00:47.6]} 40. Rg3
{[%clk 0:00:16]} 40... hxg3+ {[%clk 0:00:38.2]} 41. Qxg3 {[%clk 0:00:16.4]}
41... Re2 {[%clk 0:00:34.1]} 42. Qh4+ {[%clk 0:00:16.1]} 42... Kg7 {[%clk
0:00:32.9]} 43. Qg4 {[%clk 0:00:15.7]} 43... Re1 {[%clk 0:00:26]} 44. e5 {[%clk
0:00:13.4]} 44... Qg1+ {[%clk 0:00:23.6]} 45. Kg3 {[%clk 0:00:13.2]} 45... Re3+
{[%clk 0:00:24]} 46. Kh4 {[%clk 0:00:11.6]} 46... Qf2+ {[%clk 0:00:24]} 47. g3
{[%clk 0:00:11.1]} 47... Rxe5 {[%clk 0:00:23.7]} 48. Qd4 {[%clk 0:00:09.4]}
48... Qf6+ {[%clk 0:00:21.4]} 49. Kg4 {[%clk 0:00:07.3]} 49... Rg5+ {[%clk
0:00:21.9]} 0-1

[Event "*** Titled Tuesday Blitz"]
[Site "Chess.com"]
[Date "2020.05.26"]
[Round "7"]
[White "DivyaDeshmukh23"]
[Black "MilanJeremic"]
[Result "1-0"]
[WhiteElo "2427"]
[BlackElo "2235"]
[TimeControl "180+1"]
[EndTime "11:21:35 PDT"]
[Termination "DivyaDeshmukh23 won on time"]

1. e4 {[%clk 0:03:00.9]} 1... c6 {[%clk 0:02:59]} 2. d4 {[%clk 0:02:56.2]} 2...
d5 {[%clk 0:02:58.8]} 3. exd5 {[%clk 0:02:57.1]} 3... cxd5 {[%clk 0:02:58.1]} 4.
Bd3 {[%clk 0:02:56.8]} 4... Nc6 {[%clk 0:02:57.1]} 5. c3 {[%clk 0:02:57.4]} 5...
Nf6 {[%clk 0:02:57.1]} 6. h3 {[%clk 0:02:56.3]} 6... g6 {[%clk 0:02:56.1]} 7.
Nf3 {[%clk 0:02:52.4]} 7... Bg7 {[%clk 0:02:55.7]} 8. O-O {[%clk 0:02:47.6]}
8... O-O {[%clk 0:02:55.2]} 9. Bf4 {[%clk 0:02:43.5]} 9... Bf5 {[%clk 0:02:54]}
10. Bxf5 {[%clk 0:02:35.1]} 10... gxf5 {[%clk 0:02:53.7]} 11. Na3 {[%clk
0:02:34]} 11... a6 {[%clk 0:02:44.6]} 12. Nc2 {[%clk 0:02:32.6]} 12... e6 {[%clk
0:02:43.7]} 13. Ne3 {[%clk 0:02:15.3]} 13... Ne4 {[%clk 0:02:42.6]} 14. Nd2
{[%clk 0:02:05]} 14... b5 {[%clk 0:02:36.3]} 15. Nxe4 {[%clk 0:01:57.2]} 15...
fxe4 {[%clk 0:02:35.6]} 16. Qh5 {[%clk 0:01:53.4]} 16... Qf6 {[%clk 0:02:27.4]}
17. Bg3 {[%clk 0:01:42]} 17... Qg6 {[%clk 0:02:24.4]} 18. Qe2 {[%clk 0:01:39.1]}
18... f5 {[%clk 0:02:21.3]} 19. Bf4 {[%clk 0:01:35.1]} 19... Kh8 {[%clk
0:02:05.4]} 20. Kh1 {[%clk 0:01:21.9]} 20... Rg8 {[%clk 0:02:04.1]} 21. a4
{[%clk 0:01:16.5]} 21... b4 {[%clk 0:02:01.7]} 22. g3 {[%clk 0:01:08.8]} 22...
Bh6 {[%clk 0:01:51.1]} 23. Ng2 {[%clk 0:00:57.7]} 23... Bg7 {[%clk 0:01:42.5]}
24. Be3 {[%clk 0:00:45.9]} 24... e5 {[%clk 0:01:29.2]} 25. dxe5 {[%clk
0:00:44.7]} 25... Nxe5 {[%clk 0:01:25.7]} 26. Nf4 {[%clk 0:00:42.9]} 26... Qf7
{[%clk 0:01:22]} 27. Bd4 {[%clk 0:00:41.8]} 27... Nf3 {[%clk 0:01:17.7]} 28.
Bxg7+ {[%clk 0:00:39.5]} 28... Rxg7 {[%clk 0:01:17.6]} 29. Rfd1 {[%clk
0:00:38.3]} 29... bxc3 {[%clk 0:01:16.4]} 30. bxc3 {[%clk 0:00:37.9]} 30... Qf6
{[%clk 0:00:58.3]} 31. Rxd5 {[%clk 0:00:30.4]} 31... Qxc3 {[%clk 0:00:57.2]} 32.
Rad1 {[%clk 0:00:30.9]} 32... Rag8 {[%clk 0:00:55.7]} 33. Rd8 {[%clk 0:00:27.8]}
33... Ne5 {[%clk 0:00:47.7]} 34. Qxa6 {[%clk 0:00:06.5]} 34... Qf3+ {[%clk
0:00:45.2]} 35. Ng2 {[%clk 0:00:06.4]} 35... Rg6 {[%clk 0:00:10.2]} 36. Rxg8+
{[%clk 0:00:05.7]} 36... Kxg8 {[%clk 0:00:09.9]} 37. Rd8+ {[%clk 0:00:05.4]}
37... Kg7 {[%clk 0:00:09]} 38. Qb7+ {[%clk 0:00:04.9]} 38... Kh6 {[%clk
0:00:07.2]} 39. Qa7 {[%clk 0:00:04.9]} 1-0

[Event "*** Titled Tuesday Blitz"]
[Site "Chess.com"]
[Date "2020.05.26"]
[Round "7"]
[White "IMinTheWings"]
[Black "Tashik"]
[Result "1-0"]
[WhiteElo "2146"]
[BlackElo "2434"]
[TimeControl "180+1"]
[EndTime "11:21:36 PDT"]
[Termination "IMinTheWings won by resignation"]

1. c4 {[%clk 0:03:00.9]} 1... e6 {[%clk 0:02:47.7]} 2. Nc3 {[%clk 0:03:01.1]}
2... d5 {[%clk 0:02:30.7]} 3. d4 {[%clk 0:03:00.6]} 3... Nf6 {[%clk 0:02:31.3]}
4. cxd5 {[%clk 0:03:00.3]} 4... Nxd5 {[%clk 0:02:32.2]} 5. e4 {[%clk 0:03:00]}
5... Nxc3 {[%clk 0:02:32.4]} 6. bxc3 {[%clk 0:03:00.9]} 6... c5 {[%clk
0:02:32.9]} 7. Nf3 {[%clk 0:02:58.8]} 7... cxd4 {[%clk 0:02:32.9]} 8. cxd4
{[%clk 0:02:59.5]} 8... Bb4+ {[%clk 0:02:33.5]} 9. Bd2 {[%clk 0:03:00.2]} 9...
Bxd2+ {[%clk 0:02:34.2]} 10. Qxd2 {[%clk 0:03:01.1]} 10... O-O {[%clk
0:02:34.5]} 11. Bd3 {[%clk 0:03:01.6]} 11... Nc6 {[%clk 0:02:34.1]} 12. e5
{[%clk 0:02:59.3]} 12... Qa5 {[%clk 0:02:30.3]} 13. Be4 {[%clk 0:02:52]} 13...
Qxd2+ {[%clk 0:02:25.2]} 14. Kxd2 {[%clk 0:02:52.9]} 14... Bd7 {[%clk
0:02:06.7]} 15. Rhc1 {[%clk 0:02:44.6]} 15... Rac8 {[%clk 0:02:04.5]} 16. Rab1
{[%clk 0:02:42.2]} 16... b6 {[%clk 0:02:04.4]} 17. Kd3 {[%clk 0:02:39.7]} 17...
Rfd8 {[%clk 0:01:57.8]} 18. Nd2 {[%clk 0:02:36.9]} 18... Be8 {[%clk 0:01:24.8]}
19. Bxc6 {[%clk 0:02:18.4]} 19... Bxc6 {[%clk 0:01:25.7]} 20. f3 {[%clk
0:02:18.3]} 20... Bd5 {[%clk 0:01:19.5]} 21. a4 {[%clk 0:02:12.6]} 21... Kf8
{[%clk 0:01:17.1]} 22. a5 {[%clk 0:01:47.7]} 22... bxa5 {[%clk 0:01:14.1]} 23.
Rxc8 {[%clk 0:01:43.7]} 23... Rxc8 {[%clk 0:01:15]} 24. Ra1 {[%clk 0:01:44.3]}
24... Ke7 {[%clk 0:01:06]} 25. Rxa5 {[%clk 0:01:43.8]} 25... Rc7 {[%clk
0:01:06.6]} 26. Ne4 {[%clk 0:01:40.2]} 26... Bxe4+ {[%clk 0:00:54.2]} 27. fxe4
{[%clk 0:01:41.1]} 27... Rb7 {[%clk 0:00:53.3]} 28. d5 {[%clk 0:01:38.8]} 28...
Kd7 {[%clk 0:00:50]} 29. Ra6 {[%clk 0:01:34.6]} 29... Kc7 {[%clk 0:00:30.5]} 30.
dxe6 {[%clk 0:01:30.4]} 30... fxe6 {[%clk 0:00:31.4]} 31. Rxe6 {[%clk
0:01:30.7]} 31... a5 {[%clk 0:00:22.5]} 32. Re7+ {[%clk 0:01:28.6]} 32... Kb6
{[%clk 0:00:22.4]} 33. Re6+ {[%clk 0:00:36.2]} 33... Kb5 {[%clk 0:00:22.4]} 34.
Rd6 {[%clk 0:00:35.1]} 34... Kb4 {[%clk 0:00:21]} 35. e6 {[%clk 0:00:34.9]}
35... Re7 {[%clk 0:00:16]} 36. Kd4 {[%clk 0:00:34.1]} 36... a4 {[%clk
0:00:15.6]} 37. Kd5 {[%clk 0:00:34.4]} 37... a3 {[%clk 0:00:14.6]} 38. Rd7
{[%clk 0:00:35.1]} 38... a2 {[%clk 0:00:11]} 39. Rxe7 {[%clk 0:00:29.8]} 39...
a1=Q {[%clk 0:00:10.5]} 40. Rb7+ {[%clk 0:00:29.9]} 40... Kc3 {[%clk 0:00:09.8]}
41. e7 {[%clk 0:00:29.8]} 41... Qa5+ {[%clk 0:00:10.1]} 42. Kc6 {[%clk
0:00:29.4]} 42... Qa4+ {[%clk 0:00:08.3]} 43. Kd6 {[%clk 0:00:27.2]} 43... Qxe4
{[%clk 0:00:07.4]} 44. Rb8 {[%clk 0:00:24.4]} 44... Qf4+ {[%clk 0:00:07.7]} 45.
Kd7 {[%clk 0:00:25]} 45... Qxb8 {[%clk 0:00:07.2]} 46. e8=Q {[%clk 0:00:25.4]}
46... Qxe8+ {[%clk 0:00:06.5]} 47. Kxe8 {[%clk 0:00:25.7]} 47... Kd3 {[%clk
0:00:06.9]} 48. Kf7 {[%clk 0:00:26.1]} 48... g5 {[%clk 0:00:07.3]} 49. Kf6
{[%clk 0:00:26.1]} 49... h6 {[%clk 0:00:05.8]} 50. Kg6 {[%clk 0:00:26.1]} 50...
Ke3 {[%clk 0:00:06.3]} 51. Kxh6 {[%clk 0:00:26.3]} 51... Kf2 {[%clk 0:00:06.6]}
52. Kxg5 {[%clk 0:00:26.4]} 52... Kxg2 {[%clk 0:00:07.2]} 53. h4 {[%clk
0:00:27.2]} 1-0

[Event "*** Titled Tuesday Blitz"]
[Site "Chess.com"]
[Date "2020.05.26"]
[Round "7"]
[White "QueenOfTactics90"]
[Black "Xeniya2005"]
[Result "1/2-1/2"]
[WhiteElo "1969"]
[BlackElo "2294"]
[TimeControl "180+1"]
[EndTime "11:21:36 PDT"]
[Termination "Game drawn by repetition"]

1. e4 {[%clk 0:03:00.9]} 1... e6 {[%clk 0:02:58.8]} 2. Qe2 {[%clk 0:02:59.7]}
2... b6 {[%clk 0:02:56.1]} 3. Nf3 {[%clk 0:02:59.5]} 3... Bb7 {[%clk 0:02:56]}
4. g3 {[%clk 0:02:56.6]} 4... c5 {[%clk 0:02:55.6]} 5. Bg2 {[%clk 0:02:55.8]}
5... g6 {[%clk 0:02:54.9]} 6. O-O {[%clk 0:02:53.8]} 6... Bg7 {[%clk 0:02:54.4]}
7. c3 {[%clk 0:02:53.2]} 7... Ne7 {[%clk 0:02:53.3]} 8. d3 {[%clk 0:02:48.4]}
8... O-O {[%clk 0:02:52.5]} 9. h4 {[%clk 0:02:48.2]} 9... h5 {[%clk 0:02:47.8]}
10. Bg5 {[%clk 0:02:45.7]} 10... d6 {[%clk 0:02:47.3]} 11. Nbd2 {[%clk
0:02:41.7]} 11... Nbc6 {[%clk 0:02:41]} 12. Rad1 {[%clk 0:02:31.9]} 12... Qc7
{[%clk 0:02:37.4]} 13. Nh2 {[%clk 0:02:25.2]} 13... f6 {[%clk 0:02:23.7]} 14.
Be3 {[%clk 0:02:23]} 14... d5 {[%clk 0:02:23.2]} 15. exd5 {[%clk 0:02:14.6]}
15... exd5 {[%clk 0:02:22.6]} 16. Bf4 {[%clk 0:02:06.1]} 16... Qd7 {[%clk
0:02:21.5]} 17. Rfe1 {[%clk 0:01:58.6]} 17... Rad8 {[%clk 0:02:14.8]} 18. Qe6+
{[%clk 0:01:55.6]} 18... Qxe6 {[%clk 0:02:14.1]} 19. Rxe6 {[%clk 0:01:55.7]}
19... Kf7 {[%clk 0:02:14.6]} 20. Rde1 {[%clk 0:01:54.4]} 20... Ne5 {[%clk
0:02:04.8]} 21. Bh3 {[%clk 0:01:45.9]} 21... Bc8 {[%clk 0:01:54.6]} 22. Rxe7+
{[%clk 0:01:39.5]} 22... Kxe7 {[%clk 0:01:53.3]} 23. Bxc8 {[%clk 0:01:38.5]}
23... Rxc8 {[%clk 0:01:53.4]} 24. d4 {[%clk 0:01:38.8]} 24... Kd6 {[%clk
0:01:36.9]} 25. dxe5+ {[%clk 0:01:38.5]} 25... fxe5 {[%clk 0:01:35.2]} 26. Bg5
{[%clk 0:01:37]} 26... Rce8 {[%clk 0:01:33.3]} 27. Nhf3 {[%clk 0:01:30.9]} 27...
e4 {[%clk 0:01:32]} 28. Bf4+ {[%clk 0:01:28.7]} 28... Kc6 {[%clk 0:01:28.3]} 29.
Ng5 {[%clk 0:01:28.5]} 29... b5 {[%clk 0:01:21.9]} 30. f3 {[%clk 0:01:22.5]}
30... exf3 {[%clk 0:01:13.9]} 31. Ngxf3 {[%clk 0:01:17.5]} 31... Rxe1+ {[%clk
0:01:07.3]} 32. Nxe1 {[%clk 0:01:16.9]} 32... d4 {[%clk 0:01:05.8]} 33. c4
{[%clk 0:01:10.1]} 33... a6 {[%clk 0:01:02.2]} 34. b3 {[%clk 0:01:09.2]} 34...
Re8 {[%clk 0:00:59.1]} 35. Kf2 {[%clk 0:01:09.4]} 35... Bf6 {[%clk 0:00:52.9]}
36. Nd3 {[%clk 0:01:09.2]} 36... Kb6 {[%clk 0:00:44.8]} 37. Kf3 {[%clk
0:01:09.4]} 37... Kc6 {[%clk 0:00:40.3]} 38. Ne4 {[%clk 0:01:09.6]} 38... Be7
{[%clk 0:00:35.3]} 39. Ne5+ {[%clk 0:01:09.5]} 39... Kb6 {[%clk 0:00:35.1]} 40.
Nxg6 {[%clk 0:01:07.9]} 40... bxc4 {[%clk 0:00:33.1]} 41. bxc4 {[%clk
0:01:07.6]} 41... Bd8 {[%clk 0:00:32.3]} 42. Ne5 {[%clk 0:01:04.5]} 42... Re7
{[%clk 0:00:26]} 43. Ng6 {[%clk 0:00:54]} 43... Rf7 {[%clk 0:00:20.1]} 44. Ne5
{[%clk 0:00:53.4]} 44... Re7 {[%clk 0:00:20.1]} 45. Nd3 {[%clk 0:00:53.4]} 45...
Kc6 {[%clk 0:00:17.4]} 46. Nexc5 {[%clk 0:00:50.7]} 46... Bb6 {[%clk 0:00:17]}
47. Ne4 {[%clk 0:00:50.4]} 47... a5 {[%clk 0:00:16.6]} 48. c5 {[%clk 0:00:50.6]}
48... Ba7 {[%clk 0:00:16.7]} 49. Ne5+ {[%clk 0:00:50.4]} 49... Kd5 {[%clk
0:00:15.9]} 50. Nf6+ {[%clk 0:00:44.2]} 50... Kxc5 {[%clk 0:00:13]} 51. Ned7+
{[%clk 0:00:40]} 51... Kc6 {[%clk 0:00:11.8]} 52. Ne5+ {[%clk 0:00:38.7]} 52...
Kc5 {[%clk 0:00:11.5]} 53. Nd3+ {[%clk 0:00:38.8]} 53... Kc4 {[%clk 0:00:10.6]}
54. Ne5+ {[%clk 0:00:39]} 54... Kc5 {[%clk 0:00:10.1]} 1/2-1/2

[Event "*** Titled Tuesday Blitz"]
[Site "Chess.com"]
[Date "2020.05.26"]
[Round "7"]
[White "ulkaf961"]
[Black "Denis_Palkovich"]
[Result "1-0"]
[WhiteElo "2203"]
[BlackElo "2302"]
[TimeControl "180+1"]
[EndTime "11:21:36 PDT"]
[Termination "ulkaf961 won by checkmate"]

1. e4 {[%clk 0:03:00.9]} 1... d5 {[%clk 0:02:41.2]} 2. exd5 {[%clk 0:02:58.8]}
2... Nf6 {[%clk 0:02:38.7]} 3. Nc3 {[%clk 0:02:59]} 3... Nxd5 {[%clk 0:02:37.9]}
4. Bc4 {[%clk 0:02:59.1]} 4... Nb6 {[%clk 0:02:37.5]} 5. Bb3 {[%clk 0:02:56.7]}
5... c5 {[%clk 0:02:38.1]} 6. d3 {[%clk 0:02:42]} 6... g6 {[%clk 0:02:34.7]} 7.
Be3 {[%clk 0:02:39.4]} 7... N8d7 {[%clk 0:02:20.4]} 8. Nf3 {[%clk 0:02:38.3]}
8... Bg7 {[%clk 0:02:19.8]} 9. Bxf7+ {[%clk 0:02:37.4]} 9... Kxf7 {[%clk
0:02:19.6]} 10. Ng5+ {[%clk 0:02:37.7]} 10... Kg8 {[%clk 0:02:14.1]} 11. Ne6
{[%clk 0:02:34.5]} 11... Qe8 {[%clk 0:02:13.1]} 12. Nc7 {[%clk 0:02:34.6]} 12...
Qf7 {[%clk 0:02:12.5]} 13. Nxa8 {[%clk 0:02:34.3]} 13... Nxa8 {[%clk 0:02:12.2]}
14. O-O {[%clk 0:02:33.3]} 14... b6 {[%clk 0:02:11.4]} 15. Ne4 {[%clk
0:02:31.7]} 15... h6 {[%clk 0:02:07.1]} 16. c3 {[%clk 0:02:24.2]} 16... Bb7
{[%clk 0:02:07.2]} 17. a4 {[%clk 0:02:15.7]} 17... Nc7 {[%clk 0:02:02.7]} 18. a5
{[%clk 0:02:15.6]} 18... b5 {[%clk 0:01:33.6]} 19. Rc1 {[%clk 0:01:34.8]} 19...
c4 {[%clk 0:01:30.8]} 20. Bxa7 {[%clk 0:01:22.8]} 20... cxd3 {[%clk 0:01:27]}
21. Qxd3 {[%clk 0:01:21.2]} 21... Ne5 {[%clk 0:01:19.7]} 22. Qd8+ {[%clk
0:01:15.8]} 22... Kh7 {[%clk 0:01:19.3]} 23. Qxc7 {[%clk 0:01:03.5]} 23... Bxe4
{[%clk 0:01:19.1]} 24. f3 {[%clk 0:01:01.5]} 24... Bd3 {[%clk 0:00:58.2]} 25.
Rfe1 {[%clk 0:00:55.8]} 25... Qf4 {[%clk 0:00:27.9]} 26. Qxe7 {[%clk 0:00:39.7]}
26... Rf8 {[%clk 0:00:15.5]} 27. Bd4 {[%clk 0:00:37.2]} 27... Rf7 {[%clk
0:00:09.9]} 28. Qe6 {[%clk 0:00:24.3]} 28... Nxf3+ {[%clk 0:00:07]} 29. gxf3
{[%clk 0:00:20.7]} 29... Qxf3 {[%clk 0:00:07.1]} 30. Qe3 {[%clk 0:00:20.4]}
30... Bxd4 {[%clk 0:00:06.4]} 31. cxd4 {[%clk 0:00:20.4]} 31... Qg4+ {[%clk
0:00:06.4]} 32. Qg3 {[%clk 0:00:20.4]} 32... Qf5 {[%clk 0:00:06]} 33. Rc7 {[%clk
0:00:17.1]} 33... Bc4 {[%clk 0:00:04.6]} 34. Rxf7+ {[%clk 0:00:15.7]} 34... Qxf7
{[%clk 0:00:05.5]} 35. Qe5 {[%clk 0:00:14.3]} 35... Qf3 {[%clk 0:00:04.3]} 36.
Qe7+ {[%clk 0:00:12.3]} 36... Kh8 {[%clk 0:00:04]} 37. Qe5+ {[%clk 0:00:10.2]}
37... Kh7 {[%clk 0:00:03.9]} 38. Qg3 {[%clk 0:00:08.6]} 38... Qd3 {[%clk
0:00:03.3]} 39. Re7+ {[%clk 0:00:07.5]} 39... Kg8 {[%clk 0:00:02.8]} 40. Qb8#
{[%clk 0:00:07.1]} 1-0